fUST/lending_fUST_20250713
["ID","MTS","AMOUNT","RATE_DAILY","PERIOD"]
[371550564,1752345056360,-5000.0,0.00019214,2]
[371550565,1752345056369,-100000.0,0.00019329,2]
[371550566,1752345056379,-504.12455157,0.00019373,2]
[371550567,1752345056388,-500.0,0.00019373,2]
[371550568,1752345056398,-498.4323488,0.00019373,2]
[371550569,1752345056407,-258.0,0.00019373,2]
[371550570,1752345056417,-500.97108494,0.00019373,2]
[371550571,1752345056426,-500.0,0.00019373,2]
[371550572,1752345056436,-500.0,0.00019373,2]
[371550573,1752345056445,-500.0,0.00019373,2]
[371550574,1752345056455,-500.0,0.00019373,2]
[371550575,1752345056465,-500.0,0.00019373,2]
[371550576,1752345056474,-500.0,0.00019373,2]
[371550577,1752345056483,-1724.13888368,0.00019383,2]
[371550578,1752345056493,-460.0,0.00019389,2]
[371550579,1752345056502,-404.76,0.00019389,2]
[371550580,1752345056512,-1158.6,0.00019389,2]
[371550581,1752345056522,-1102.62,0.00019389,2]
[371550582,1752345056531,-460.0,0.00019389,2]
[371550583,1752345056540,-2045.98,0.00019389,2]
[371550584,1752345056551,-485.06,0.00019389,2]
[371550585,1752345056561,-555.8,0.00019389,2]
[371550586,1752345056571,-1166.84,0.00019389,2]
[371550587,1752345056581,-4133.6,0.00019389,2]
[371550588,1752345056590,-29944.87,0.000194,2]
[371550589,1752345056600,-2500.0,0.00019402,2]
[371550590,1752345056610,-2500.0,0.00019402,2]
[371550591,1752345056620,-561.63,0.00019452,2]
[371550592,1752345056630,-460.0,0.00019452,2]
[371550593,1752345056640,-460.0,0.00019452,2]
[371550594,1752345056649,-534.5,0.00019452,2]
[371550595,1752345056659,-463.32,0.00019452,2]
[371550596,1752345056669,-460.0,0.00019452,2]
[371550597,1752345056678,-485.04,0.00019452,2]
[371550598,1752345056689,-460.0,0.00019452,2]
[371550599,1752345056699,-460.0,0.00019452,2]
[371550600,1752345056708,-460.0,0.00019452,2]
[371550601,1752345056718,-460.0,0.00019452,2]
[371550602,1752345056728,-585.71,0.00019452,2]
[371550603,1752345056737,-460.0,0.00019452,2]
[371550604,1752345056747,-556.7,0.00019452,2]
[371550605,1752345056757,-559.24,0.00019452,2]
[371550606,1752345056766,-1139.06,0.00019452,2]
[371550607,1752345056776,-460.0,0.00019452,2]
[371550608,1752345056785,-1678.0,0.00019452,2]
[371550609,1752345056795,-151.0,0.00019452,2]
[371550610,1752345056804,-500.0,0.00019452,2]
[371550611,1752345056814,-151.0,0.00019452,2]
[371550612,1752345056824,-566.32,0.00019452,2]
[371550613,1752345056833,-151.0,0.00019452,2]
[371550614,1752345056843,-151.0,0.00019452,2]
[371550615,1752345056854,-162.06312997,0.00019452,2]
[371550616,1752345056864,-156.58144289,0.00019452,2]
[371550617,1752345056873,-151.0,0.00019452,2]
[371550618,1752345056883,-151.0,0.00019452,2]
[371550619,1752345056898,-151.0,0.00019452,2]
[371550620,1752345056908,-670.89,0.00019452,2]
[371550621,1752345056926,-216.43374271,0.00019452,2]
[371550622,1752345056935,-151.0,0.00019452,2]
[371550623,1752345056944,-151.00208844,0.00019452,2]
[371550624,1752345056953,-460.0,0.00019452,2]
[371550625,1752345056963,-460.0,0.00019452,2]
[371550626,1752345056972,-588.29,0.00019452,2]
[371550627,1752345056981,-460.0,0.00019452,2]
[371550628,1752345056991,-350.45015773,0.00019452,2]
[371550629,1752345057000,-460.0,0.00019452,2]
[371550630,1752345057010,-1499.85,0.00019452,2]
[371550631,1752345057021,-2698.45,0.00019452,2]
[371550632,1752345057031,-485.02,0.00019452,2]
[371550633,1752345057040,-644.74,0.00019452,2]
[371550634,1752345057049,-460.0,0.00019452,2]
[371550635,1752345057059,-500.0,0.00019452,2]
[371550636,1752345057069,-151.0,0.00019452,2]
[371550637,1752345057079,-500.0,0.00019452,2]
[371550638,1752345057088,-465.4,0.00019452,2]
[371550639,1752345057098,-480.24,0.00019452,2]
[371550640,1752345057107,-151.0,0.00019452,2]
[371550641,1752345057117,-151.0,0.00019452,2]
[371550642,1752345057127,-460.0,0.00019452,2]
[371550643,1752345057136,-460.0,0.00019452,2]
[371550644,1752345057145,-460.0,0.00019452,2]
[371550645,1752345057155,-460.0,0.00019452,2]
[371550646,1752345057164,-596.61,0.00019452,2]
[371550647,1752345057174,-460.0,0.00019452,2]
[371550648,1752345057183,-1004.62,0.00019452,2]
[371550649,1752345057192,-460.0,0.00019452,2]
[371550650,1752345057202,-151.74993914,0.00019452,2]
[371550651,1752345057211,-151.0,0.00019452,2]
[371550652,1752345057220,-500.0,0.00019452,2]
[371550653,1752345057230,-608.08,0.00019452,2]
[371550654,1752345057239,-1615.51,0.00019452,2]
[371550655,1752345057248,-2336.58,0.00019452,2]
[371550656,1752345057257,-460.0,0.00019452,2]
[371550657,1752345057267,-580.92818793,0.00019452,2]
[371550658,1752345057276,-550.21,0.00019452,2]
[371550659,1752345057286,-460.0,0.00019452,2]
[371550660,1752345057295,-460.0,0.00019452,2]
[371550661,1752345057305,-460.0,0.00019452,2]
[371550662,1752345057314,-460.0,0.00019452,2]
[371550663,1752345057326,-460.0,0.00019452,2]
[371550664,1752345057335,-3234.99,0.00019452,2]
[371550665,1752345057345,-460.0,0.00019452,2]
[371550666,1752345057355,-460.0,0.00019452,2]
[371550667,1752345057364,-460.0,0.00019452,2]
[371550668,1752345057374,-778.51,0.00019452,2]
[371550669,1752345057383,-460.0,0.00019452,2]
[371550670,1752345057392,-636.67,0.00019452,2]
[371550671,1752345057401,-464.69,0.00019452,2]
[371550672,1752345057411,-2115.58,0.00019452,2]
[371550673,1752345057421,-460.0,0.00019452,2]
[371550674,1752345057431,-460.0,0.00019452,2]
[371550675,1752345057441,-500.0,0.00019452,2]
[371550676,1752345057450,-500.0,0.00019452,2]
[371550677,1752345057460,-151.0,0.00019452,2]
[371550678,1752345057469,-151.0,0.00019452,2]
[371550679,1752345057479,-151.0,0.00019452,2]
[371550680,1752345057489,-151.0,0.00019452,2]
[371550681,1752345057498,-1678.0,0.00019479,2]
[371550682,1752345057509,-151.0,0.00019479,2]
[371550683,1752345057518,-500.0,0.00019479,2]
[371550684,1752345057528,-151.0,0.00019479,2]
[371550685,1752345057537,-151.0,0.00019479,2]
[371550686,1752345057547,-151.0,0.00019479,2]
[371550687,1752345057556,-151.0,0.00019479,2]
[371550688,1752345057566,-151.85317382,0.00019479,2]
[371550689,1752345057576,-151.0,0.00019479,2]
[371550690,1752345057585,-151.0,0.00019479,2]
[371550691,1752345057595,-500.0,0.00019479,2]
[371550692,1752345057605,-500.0,0.00019479,2]
[371550693,1752345057614,-151.0,0.00019479,2]
[371550694,1752345057625,-151.52449373,0.00019479,2]
[371550695,1752345057634,-500.0,0.00019479,2]
[371550696,1752345057644,-500.0,0.00019479,2]
[371550697,1752345057654,-500.0,0.00019479,2]
[371550698,1752345057663,-151.0,0.00019479,2]
[371550699,1752345057673,-151.0,0.00019479,2]
[371550700,1752345057683,-184.4759593,0.00019479,2]
[371550701,1752345057692,-151.81118239,0.00019479,2]
[371550702,1752345057702,-1678.0,0.00019507,2]
[371550703,1752345057711,-151.0,0.00019507,2]
[371550704,1752345057722,-500.0,0.00019507,2]
[371550705,1752345057731,-151.0,0.00019507,2]
[371550706,1752345057740,-151.0,0.00019507,2]
[371550707,1752345057749,-151.0,0.00019507,2]
[371550708,1752345057759,-151.0,0.00019507,2]
[371550709,1752345057769,-151.0,0.00019507,2]
[371550710,1752345057779,-151.0,0.00019507,2]
[371550711,1752345057788,-151.0,0.00019507,2]
[371550712,1752345057798,-500.0,0.00019507,2]
[371550713,1752345057808,-151.0,0.00019507,2]
[371550714,1752345057818,-500.0,0.00019507,2]
[371550715,1752345057827,-500.0,0.00019507,2]
[371550716,1752345057837,-500.0,0.00019507,2]
[371550717,1752345057846,-151.0,0.00019507,2]
[371550718,1752345057859,-151.0,0.00019507,2]
[371550719,1752345057869,-1678.0,0.00019534,2]
[371550720,1752345057879,-151.0,0.00019534,2]
[371550721,1752345057888,-500.0,0.00019534,2]
[371550722,1752345057899,-151.0,0.00019534,2]
[371550723,1752345057908,-151.0,0.00019534,2]
[371550724,1752345057918,-151.0,0.00019534,2]
[371550725,1752345057929,-151.0,0.00019534,2]
[371550726,1752345057938,-199.04772792,0.00019534,2]
[371550727,1752345057948,-199.92653146,0.00019534,2]
[371550728,1752345057957,-500.0,0.00019534,2]
[371550729,1752345057967,-151.0,0.00019534,2]
[371550730,1752345057976,-500.0,0.00019534,2]
[371550731,1752345058092,-500.0,0.00019534,2]
[371550732,1752345058118,-407.50494148,0.00019534,2]
[371550733,1752345058128,-245.0,0.00019534,2]
[371550734,1752345058137,-151.0,0.00019534,2]
[371550735,1752345058148,-1678.0,0.00019562,2]
[371550736,1752345058160,-151.0,0.00019562,2]
[371550737,1752345058172,-500.0,0.00019562,2]
[371550738,1752345058185,-151.0,0.00019562,2]
[371550739,1752345058196,-151.0,0.00019562,2]
[371550740,1752345058207,-200.17705806,0.00019562,2]
[371550741,1752345058219,-186.06781658,0.00019562,2]
[371550742,1752345058229,-500.0,0.00019562,2]
[371550743,1752345058240,-500.0,0.00019562,2]
[371550744,1752345058251,-500.0,0.00019562,2]
[371550745,1752345058261,-151.0,0.00019562,2]
[371550746,1752345058272,-1678.0,0.00019589,2]
[371550747,1752345058282,-245.0,0.00019589,2]
[371550748,1752345058291,-500.0,0.00019589,2]
[371550749,1752345058301,-236.98398654,0.00019589,2]
[371550750,1752345058311,-245.0,0.00019589,2]
[371550751,1752345058320,-500.0,0.00019589,2]
[371550752,1752345058330,-500.0,0.00019589,2]
[371550753,1752345058340,-500.0,0.00019589,2]
[371550754,1752345058350,-217.51732538,0.00019589,2]
[371550755,1752345058360,-1678.0,0.00019616,2]
[371550756,1752345058370,-515.8888344,0.00019616,2]
[371550757,1752345058380,-500.0,0.00019616,2]
[371550758,1752345058390,-500.0,0.00019616,2]
[371550759,1752345058400,-500.0,0.00019616,2]
[371550760,1752345058410,-647.08451494,0.00019626,2]
[371550761,1752345058419,-1678.0,0.00019644,2]
[371550762,1752345058429,-254.17189163,0.00019644,2]
[371550763,1752345058440,-500.0,0.00019644,2]
[371550764,1752345058450,-278.51430611,0.00019644,2]
[371550765,1752345058459,-460.0,0.00019663,2]
[371550766,1752345058470,-1158.6,0.00019663,2]
[371550767,1752345058479,-1102.62,0.00019663,2]
[371550768,1752345058490,-460.0,0.00019663,2]
[371550769,1752345058500,-2045.98,0.00019663,2]
[371550770,1752345058510,-485.06,0.00019663,2]
[371550771,1752345058520,-1166.84,0.00019663,2]
[371550772,1752345058530,-4133.6,0.00019663,2]
[371550773,1752345058540,-1678.0,0.00019671,2]
[371550774,1752345058550,-500.0,0.00019671,2]
[371550775,1752345058559,-1724.13888368,0.00019693,2]
[371550776,1752345058570,-1678.0,0.00019699,2]
[371550777,1752345058580,-500.0,0.00019699,2]
[371550778,1752345058591,-1678.0,0.00019726,2]
[371550779,1752345058600,-500.0,0.00019726,2]
[371550780,1752345058610,-561.63,0.00019726,2]
[371550781,1752345058620,-460.0,0.00019726,2]
[371550782,1752345058629,-460.0,0.00019726,2]
[371550783,1752345058640,-534.5,0.00019726,2]
[371550784,1752345058649,-463.32,0.00019726,2]
[371550785,1752345058659,-460.0,0.00019726,2]
[371550786,1752345058876,-485.04,0.00019726,2]
[371550787,1752345058886,-460.0,0.00019726,2]
[371550788,1752345058897,-460.0,0.00019726,2]
[371550789,1752345058906,-460.0,0.00019726,2]
[371550790,1752345058915,-585.71,0.00019726,2]
[371550791,1752345058926,-460.0,0.00019726,2]
[371550792,1752345058936,-1139.06,0.00019726,2]
[371550793,1752345058946,-460.0,0.00019726,2]
[371550794,1752345058955,-566.32,0.00019726,2]
[371550795,1752345058965,-670.89,0.00019726,2]
[371550796,1752345058975,-472.26,0.00019726,2]
[371550797,1752345058984,-460.0,0.00019726,2]
[371550798,1752345058994,-588.29,0.00019726,2]
[371550799,1752345059003,-460.0,0.00019726,2]
[371550800,1752345059014,-1499.85,0.00019726,2]
[371550801,1752345059024,-2698.45,0.00019726,2]
[371550802,1752345059034,-485.02,0.00019726,2]
[371550803,1752345059044,-644.74,0.00019726,2]
[371550804,1752345059055,-460.0,0.00019726,2]
[371550805,1752345059066,-480.24,0.00019726,2]
[371550806,1752345059081,-460.0,0.00019726,2]
[371550807,1752345059092,-460.0,0.00019726,2]
[371550808,1752345059102,-460.0,0.00019726,2]
[371550809,1752345059112,-596.61,0.00019726,2]
[371550810,1752345059122,-460.0,0.00019726,2]
[371550811,1752345059132,-1004.62,0.00019726,2]
[371550812,1752345059142,-460.0,0.00019726,2]
[371550813,1752345059152,-608.08,0.00019726,2]
[371550814,1752345059161,-1615.51,0.00019726,2]
[371550815,1752345059171,-2336.58,0.00019726,2]
[371550816,1752345059181,-460.0,0.00019726,2]
[371550817,1752345059190,-550.21,0.00019726,2]
[371550818,1752345059200,-460.0,0.00019726,2]
[371550819,1752345059210,-553.18,0.00019726,2]
[371550820,1752345059219,-462.91,0.00019726,2]
[371550821,1752345059229,-216.37,0.00019726,2]
[371550822,1752345059239,-460.0,0.00019726,2]
[371550823,1752345059248,-3234.99,0.00019726,2]
[371550824,1752345059258,-460.0,0.00019726,2]
[371550825,1752345059267,-460.0,0.00019726,2]
[371550826,1752345059278,-266.62463028,0.00019726,2]
[371550827,1752345059288,-778.51,0.00019726,2]
[371550828,1752345059297,-460.0,0.00019726,2]
[371550829,1752345059306,-636.67,0.00019726,2]
[371550830,1752345059317,-464.69,0.00019726,2]
[371550831,1752345059327,-2115.58,0.00019726,2]
[371550832,1752345059338,-460.0,0.00019726,2]
[371550833,1752345059349,-460.0,0.00019726,2]
[371550834,1752345059359,-1678.0,0.00019753,2]
[371550835,1752345059369,-500.0,0.00019753,2]
[371550836,1752345059379,-151.0,0.00019767,2]
[371550837,1752345059388,-151.0,0.00019767,2]
[371550838,1752345059398,-151.0,0.00019767,2]
[371550839,1752345059407,-151.0,0.00019767,2]
[371550840,1752345059417,-151.0,0.00019767,2]
[371550841,1752345059427,-151.0,0.00019767,2]
[371550842,1752345059436,-151.0,0.00019767,2]
[371550843,1752345059445,-151.0,0.00019767,2]
[371550844,1752345059455,-151.0,0.00019767,2]
[371550845,1752345059465,-207.4,0.00019767,2]
[371550846,1752345059474,-151.0,0.00019767,2]
[371550847,1752345059484,-151.0,0.00019767,2]
[371550848,1752345059494,-151.0,0.00019767,2]
[371550849,1752345059504,-151.0,0.00019767,2]
[371550850,1752345059514,-151.0,0.00019767,2]
[371550851,1752345059523,-151.0,0.00019767,2]
[371550852,1752345059533,-1678.0,0.00019781,2]
[371550853,1752345059543,-500.0,0.00019781,2]
[371550854,1752345059553,-166.804095,0.0001979,2]
[371550855,1752345059563,-1678.0,0.00019808,2]
[371550856,1752345059573,-558.16461328,0.00019808,2]
[371550857,1752345059583,-1678.0,0.00019836,2]
[371550858,1752345059593,-1678.0,0.00019863,2]
[371550859,1752345059603,-1678.0,0.0001989,2]
[371550860,1752345059612,-1678.0,0.00019918,2]
[371550861,1752345059622,-1000.0,0.00019921,2]
[371550862,1752345059632,-1000.0,0.00019921,2]
[371550863,1752345059643,-500.0,0.00019921,2]
[371550864,1752345059652,-1000.0,0.00019921,2]
[371550865,1752345059662,-1000.0,0.00019921,2]
[371550866,1752345059673,-1000.0,0.00019921,2]
[371550867,1752345059682,-500.0,0.00019921,2]
[371550868,1752345059693,-460.0,0.00019937,2]
[371550869,1752345059702,-1158.6,0.00019937,2]
[371550870,1752345059712,-1102.62,0.00019937,2]
[371550871,1752345059722,-460.0,0.00019937,2]
[371550872,1752345059731,-2045.98,0.00019937,2]
[371550873,1752345059741,-485.06,0.00019937,2]
[371550874,1752345059750,-1166.84,0.00019937,2]
[371550875,1752345059760,-4133.6,0.00019937,2]
[371550876,1752345059769,-1678.0,0.00019945,2]
[371550877,1752345059780,-3126.11862193,0.0001995,2]
[371550878,1752345059790,-500.0,0.0001995,2]
[371550879,1752345059800,-1678.0,0.00019973,2]
[371550880,1752345059810,-1788.49133284,0.0002,2]
[371550881,1752345059821,-1678.0,0.0002,2]
[371550882,1752345059831,-561.63,0.0002,2]
[371550883,1752345059841,-460.0,0.0002,2]
[371550884,1752345059851,-460.0,0.0002,2]
[371550885,1752345059863,-534.5,0.0002,2]
[371550886,1752345059873,-463.32,0.0002,2]
[371550887,1752345059883,-460.0,0.0002,2]
[371550888,1752345059892,-485.04,0.0002,2]
[371550889,1752345059902,-565.37,0.0002,2]
[371550890,1752345059911,-524.06,0.0002,2]
[371550891,1752345059921,-460.0,0.0002,2]
[371550892,1752345059932,-585.71,0.0002,2]
[371550893,1752345059942,-460.0,0.0002,2]
[371550894,1752345059951,-1139.06,0.0002,2]
[371550895,1752345059961,-460.0,0.0002,2]
[371550896,1752345059971,-566.32,0.0002,2]
[371550897,1752345059981,-670.89,0.0002,2]
[371550898,1752345059991,-460.0,0.0002,2]
[371550899,1752345060000,-588.29,0.0002,2]
[371550900,1752345060010,-460.0,0.0002,2]
[371550901,1752345060020,-1499.85,0.0002,2]
[371550902,1752345060030,-2698.45,0.0002,2]
[371550903,1752345060039,-485.02,0.0002,2]
[371550904,1752345060050,-644.74,0.0002,2]
[371550905,1752345060061,-460.0,0.0002,2]
[371550906,1752345060071,-480.24,0.0002,2]
[371550907,1752345060081,-460.0,0.0002,2]
[371550908,1752345060091,-460.0,0.0002,2]
[371550909,1752345060100,-596.61,0.0002,2]
[371550910,1752345060110,-460.0,0.0002,2]
[371550911,1752345060120,-1004.62,0.0002,2]
[371550912,1752345060130,-460.0,0.0002,2]
[371550913,1752345060139,-608.08,0.0002,2]
[371550914,1752345060148,-1615.51,0.0002,2]
[371550915,1752345060158,-11218.70515284,0.0002,2]
[371550916,1752345060167,-2336.58,0.0002,2]
[371550917,1752345060176,-460.0,0.0002,2]
[371550918,1752345060185,-14327.64330798,0.0002,2]
[371550919,1752345060194,-3190.41222963,0.0002,2]
[371550920,1752345060203,-17512.41079684,0.0002,20]
[371550921,1752345060213,-362.2537436,0.0002,2]
[371550922,1752345060223,-40000.0,0.0002,2]
[371550923,1752345060233,-839.50569351,0.0002,2]
[371550924,1752345060273,-3481.70383816,0.0002,2]
[371550925,1752345060283,-2183.81486075,0.0002,2]
[371550926,1752345060292,-550.21,0.0002,2]
[371550927,1752345060301,-460.0,0.0002,2]
[371550928,1752345060311,-3234.99,0.0002,2]
[371550929,1752345060320,-514.52,0.0002,2]
[371550930,1752345060330,-460.0,0.0002,2]
[371550931,1752345060340,-778.51,0.0002,2]
[371550932,1752345060349,-460.0,0.0002,2]
[371550933,1752345060359,-636.67,0.0002,2]
[371550934,1752345060369,-464.69,0.0002,2]
[371550935,1752345060379,-2115.58,0.0002,2]
[371550936,1752345060388,-460.0,0.0002,2]
[371550937,1752345060398,-460.0,0.0002,2]
[371550938,1752345060407,-1724.13888368,0.00020003,2]
[371550939,1752345060417,-1678.0,0.00020027,2]
[371550940,1752345060426,-1678.0,0.00020055,2]
[371550941,1752345060435,-1681.0,0.00020082,2]
[371550942,1752345060445,-151.0,0.000202,3]
[371550943,1752345060455,-460.0,0.00020211,2]
[371550944,1752345060464,-1158.6,0.00020211,2]
[371550945,1752345060474,-1102.62,0.00020211,2]
[371550946,1752345060483,-460.0,0.00020211,2]
[371550947,1752345060492,-2045.98,0.00020211,2]
[371550948,1752345060501,-485.06,0.00020211,2]
[371550949,1752345060511,-1166.84,0.00020211,2]
[371550950,1752345060521,-4133.6,0.00020211,2]
[371550951,1752345060531,-486.0,0.00020249,2]
[371550952,1752345060540,-561.63,0.00020273,2]
[371550953,1752345060549,-460.0,0.00020273,2]
[371550954,1752345060559,-581.87488138,0.00020273,2]
[371550955,1752345060568,-534.5,0.00020273,2]
[371550956,1752345060577,-463.32,0.00020273,2]
[371550957,1752345060586,-460.0,0.00020273,2]
[371550958,1752345060596,-485.04,0.00020273,2]
[371550959,1752345060605,-460.0,0.00020273,2]
[371550960,1752345060614,-585.71,0.00020273,2]
[371550961,1752345060623,-460.0,0.00020273,2]
[371550962,1752345060633,-1139.06,0.00020273,2]
[371550963,1752345060642,-460.0,0.00020273,2]
[371550964,1752345060652,-566.32,0.00020273,2]
[371550965,1752345060662,-670.89,0.00020273,2]
[371550966,1752345060671,-460.0,0.00020273,2]
[371550967,1752345060680,-588.29,0.00020273,2]
[371550968,1752345060689,-460.0,0.00020273,2]
[371550969,1752345060698,-1499.85,0.00020273,2]
[371550970,1752345060707,-2698.45,0.00020273,2]
[371550971,1752345060717,-485.02,0.00020273,2]
[371550972,1752345060726,-644.74,0.00020273,2]
[371550973,1752345060735,-460.0,0.00020273,2]
[371550974,1752345060745,-480.24,0.00020273,2]
[371550975,1752345060754,-460.0,0.00020273,2]
[371550976,1752345060763,-460.0,0.00020273,2]
[371550977,1752345060773,-596.61,0.00020273,2]
[371550978,1752345060782,-460.0,0.00020273,2]
[371550979,1752345060791,-1004.62,0.00020273,2]
[371550980,1752345060801,-460.0,0.00020273,2]
[371550981,1752345060810,-608.08,0.00020273,2]
[371550982,1752345060820,-1615.51,0.00020273,2]
[371550983,1752345060829,-460.0,0.00020273,2]
[371550984,1752345060838,-2336.58,0.00020273,2]
[371550985,1752345060848,-550.21,0.00020273,2]
[371550986,1752345060861,-460.0,0.00020273,2]
[371550987,1752345060870,-3234.99,0.00020273,2]
[371550988,1752345060879,-460.0,0.00020273,2]
[371550989,1752345060889,-460.0,0.00020273,2]
[371550990,1752345060899,-778.51,0.00020273,2]
[371550991,1752345060909,-636.67,0.00020273,2]
[371550992,1752345060919,-464.69,0.00020273,2]
[371550993,1752345060928,-2115.58,0.00020273,2]
[371550994,1752345060938,-317.88,0.00020273,2]
[371550995,1752345060947,-460.0,0.00020273,2]
[371550996,1752345060956,-1724.13888368,0.00020314,3]
[371550997,1752345060965,-486.0,0.00020393,2]
[371550998,1752345060974,-1500.0,0.00020468,2]
[371550999,1752345060983,-1500.0,0.00020468,2]
[371551000,1752345060992,-1500.0,0.00020468,2]
[371551001,1752345061001,-1500.0,0.00020468,2]
[371551002,1752345061010,-1500.0,0.00020468,2]
[371551003,1752345061020,-460.0,0.00020485,2]
[371551004,1752345061029,-1158.6,0.00020485,2]
[371551005,1752345061038,-1102.62,0.00020485,2]
[371551006,1752345061047,-460.0,0.00020485,2]
[371551007,1752345061056,-2045.98,0.00020485,2]
[371551008,1752345061065,-485.06,0.00020485,2]
[371551009,1752345061075,-1166.84,0.00020485,2]
[371551010,1752345061084,-4133.6,0.00020485,2]
[371551011,1752345061094,-3745.95,0.000205,2]
[371551012,1752345061104,-561.63,0.00020547,2]
[371551013,1752345061113,-460.0,0.00020547,2]
[371551014,1752345061123,-534.5,0.00020547,2]
[371551015,1752345061132,-463.32,0.00020547,2]
[371551016,1752345061142,-460.0,0.00020547,2]
[371551017,1752345061152,-485.04,0.00020547,2]
[371551018,1752345061161,-460.0,0.00020547,2]
[371551019,1752345061171,-585.71,0.00020547,2]
[371551020,1752345061181,-460.0,0.00020547,2]
[371551021,1752345061192,-1139.06,0.00020547,2]
[371551022,1752345061202,-175.51,0.00020547,2]
[371551023,1752345061211,-566.32,0.00020547,2]
[371551024,1752345061222,-670.89,0.00020547,2]
[371551025,1752345061232,-588.29,0.00020547,2]
[371551026,1752345061243,-218.61,0.00020547,2]
[371551027,1752345061254,-1499.85,0.00020547,2]
[371551028,1752345061264,-2698.45,0.00020547,2]
[371551029,1752345061275,-485.02,0.00020547,2]
[371551030,1752345061284,-644.74,0.00020547,2]
[371551031,1752345061294,-460.0,0.00020547,2]
[371551032,1752345061304,-480.24,0.00020547,2]
[371551033,1752345061314,-460.0,0.00020547,2]
[371551034,1752345061325,-476.85,0.00020547,2]
[371551035,1752345061335,-596.61,0.00020547,2]
[371551036,1752345061346,-460.0,0.00020547,2]
[371551037,1752345061356,-1004.62,0.00020547,2]
[371551038,1752345061365,-460.0,0.00020547,2]
[371551039,1752345061375,-608.08,0.00020547,2]
[371551040,1752345061385,-1615.51,0.00020547,2]
[371551041,1752345061394,-460.0,0.00020547,2]
[371551042,1752345061404,-2336.58,0.00020547,2]
[371551043,1752345061414,-550.21,0.00020547,2]
[371551044,1752345061423,-460.0,0.00020547,2]
[371551045,1752345061433,-3234.99,0.00020547,2]
[371551046,1752345061443,-460.0,0.00020547,2]
[371551047,1752345061453,-460.0,0.00020547,2]
[371551048,1752345061462,-778.51,0.00020547,2]
[371551049,1752345061473,-636.67,0.00020547,2]
[371551050,1752345061483,-464.69,0.00020547,2]
[371551051,1752345061494,-2115.58,0.00020547,2]
[371551052,1752345061504,-460.0,0.00020547,2]
[371551053,1752345061514,-593.403,0.00020583,2]
[371551054,1752345061524,-29944.87,0.000206,2]
[371551055,1752345061533,-486.0,0.00020615,2]
[371551056,1752345061543,-795.0,0.00020616,2]
[371551057,1752345061553,-1724.13888368,0.00020624,3]
[371551058,1752345061563,-5000.0,0.00020659,2]
[371551059,1752345061573,-1827.60029058,0.00020659,2]
[371551060,1752345061582,-260913.95852339,0.00020739,2]
[371551061,1752345061592,-460.0,0.00020759,2]
[371551062,1752345061602,-1158.6,0.00020759,2]
[371551063,1752345061612,-1102.62,0.00020759,2]